[Event "*** Titled Tuesday Blitz"]
[Site "Chess.com"]
[Date "2020.04.14"]
[Round "6"]
[White "Pittiplatsh"]
[Black "pooh2012"]
[Result "0-1"]
[WhiteElo "2342"]
[BlackElo "2561"]
[TimeControl "180+1"]
[EndTime "11:04:01 PDT"]
[Termination "pooh2012 won on time"]

1. e4 {[%clk 0:03:00.9]} 1... c6 {[%clk 0:02:59.5]} 2. d4 {[%clk 0:03:00.4]}
2... d5 {[%clk 0:03:00]} 3. e5 {[%clk 0:03:00.8]} 3... Bf5 {[%clk 0:02:59.8]} 4.
h4 {[%clk 0:03:00.6]} 4... h5 {[%clk 0:02:59.4]} 5. Bd3 {[%clk 0:03:00]} 5...
Bxd3 {[%clk 0:02:59.8]} 6. Qxd3 {[%clk 0:02:59]} 6... Qa5+ {[%clk 0:03:00.2]} 7.
Nd2 {[%clk 0:02:51.9]} 7... e6 {[%clk 0:02:59.4]} 8. Nf3 {[%clk 0:02:48.3]} 8...
Qa6 {[%clk 0:02:59.9]} 9. c4 {[%clk 0:02:47.9]} 9... Ne7 {[%clk 0:03:00.2]} 10.
b3 {[%clk 0:02:45.4]} 10... Nd7 {[%clk 0:03:00.3]} 11. a4 {[%clk 0:02:45]} 11...
Nf5 {[%clk 0:02:52.5]} 12. O-O {[%clk 0:02:38.3]} 12... Be7 {[%clk 0:02:42.8]}
13. g3 {[%clk 0:02:38.3]} 13... O-O {[%clk 0:02:40.9]} 14. Qc2 {[%clk
0:02:38.2]} 14... Rfd8 {[%clk 0:02:32.4]} 15. c5 {[%clk 0:02:37.3]} 15... Rdc8
{[%clk 0:02:15.7]} 16. b4 {[%clk 0:02:34.7]} 16... b6 {[%clk 0:02:14.8]} 17. Re1
{[%clk 0:02:28.6]} 17... bxc5 {[%clk 0:02:11.2]} 18. bxc5 {[%clk 0:02:28.4]}
18... Rcb8 {[%clk 0:02:08.7]} 19. Nf1 {[%clk 0:02:21.9]} 19... Rb4 {[%clk
0:02:01.2]} 20. Bb2 {[%clk 0:01:57.9]} 20... Rab8 {[%clk 0:01:55.6]} 21. Bc3
{[%clk 0:01:57.8]} 21... Rb3 {[%clk 0:01:35.8]} 22. N3d2 {[%clk 0:01:51.8]}
22... R3b7 {[%clk 0:01:25.3]} 23. Ne3 {[%clk 0:01:48.3]} 23... Nh6 {[%clk
0:01:21.4]} 24. Reb1 {[%clk 0:01:26.8]} 24... Qe2 {[%clk 0:01:01.7]} 25. Re1
{[%clk 0:01:15.8]} 25... Qa6 {[%clk 0:01:00.7]} 26. Reb1 {[%clk 0:01:16.3]}
26... Nf8 {[%clk 0:00:48.5]} 27. Rxb7 {[%clk 0:01:06.2]} 27... Rxb7 {[%clk
0:00:49.4]} 28. Rb1 {[%clk 0:01:06.2]} 28... g5 {[%clk 0:00:42.9]} 29. Rxb7
{[%clk 0:01:01.1]} 29... Qxb7 {[%clk 0:00:42.2]} 30. hxg5 {[%clk 0:01:01.2]}
30... Bxg5 {[%clk 0:00:41.7]} 31. f4 {[%clk 0:00:52.8]} 31... Bd8 {[%clk
0:00:32.6]} 32. Qd1 {[%clk 0:00:52.5]} 32... Qa6 {[%clk 0:00:22]} 33. Ndf1
{[%clk 0:00:35.5]} 33... Kg7 {[%clk 0:00:13.8]} 34. f5 {[%clk 0:00:20.9]} 34...
exf5 {[%clk 0:00:10.3]} 35. Ng2 {[%clk 0:00:14.7]} 35... Ng6 {[%clk 0:00:08.4]}
36. Nf4 {[%clk 0:00:10.8]} 36... h4 {[%clk 0:00:04.2]} 37. Nh5+ {[%clk
0:00:09.9]} 37... Kh7 {[%clk 0:00:04.7]} 38. Qd2 {[%clk 0:00:05.1]} 38... Ng4
{[%clk 0:00:03]} 39. gxh4 {[%clk 0:00:03.6]} 39... Qc4 {[%clk 0:00:02.8]} 40.
Ne3 {[%clk 0:00:02.9]} 40... Nxe3 {[%clk 0:00:02.3]} 41. Qxe3 {[%clk 0:00:03.2]}
41... Bxh4 {[%clk 0:00:02.8]} 42. Qf3 {[%clk 0:00:03]} 42... Qb3 {[%clk
0:00:01.6]} 0-1

[Event "*** Titled Tuesday Blitz"]
[Site "Chess.com"]
[Date "2020.04.14"]
[Round "6"]
[White "praveenb2002"]
[Black "Jumbo"]
[Result "1-0"]
[WhiteElo "2694"]
[BlackElo "2845"]
[TimeControl "180+1"]
[EndTime "11:04:02 PDT"]
[Termination "praveenb2002 won on time"]

1. d4 {[%clk 0:03:00.9]} 1... g6 {[%clk 0:03:00.9]} 2. c4 {[%clk 0:02:59.6]}
2... Bg7 {[%clk 0:03:01.5]} 3. Nf3 {[%clk 0:03:00.1]} 3... d6 {[%clk 0:03:02]}
4. g3 {[%clk 0:02:59.4]} 4... Nd7 {[%clk 0:03:00.9]} 5. Bg2 {[%clk 0:02:59.2]}
5... e5 {[%clk 0:03:01]} 6. Nc3 {[%clk 0:02:59.3]} 6... Ne7 {[%clk 0:03:01.4]}
7. O-O {[%clk 0:02:59.5]} 7... O-O {[%clk 0:03:01]} 8. e4 {[%clk 0:02:59.1]}
8... exd4 {[%clk 0:03:01.2]} 9. Nxd4 {[%clk 0:02:59.1]} 9... Nc6 {[%clk
0:03:01.8]} 10. Be3 {[%clk 0:02:58.7]} 10... Nde5 {[%clk 0:02:56]} 11. Nxc6
{[%clk 0:02:46.4]} 11... bxc6 {[%clk 0:02:55.2]} 12. Qe2 {[%clk 0:02:46.2]}
12... Ba6 {[%clk 0:02:49.6]} 13. b3 {[%clk 0:02:41.9]} 13... Nxc4 {[%clk
0:02:49.6]} 14. bxc4 {[%clk 0:02:27.2]} 14... Bxc3 {[%clk 0:02:47.7]} 15. Rac1
{[%clk 0:02:27.9]} 15... Bg7 {[%clk 0:02:41.7]} 16. Qd2 {[%clk 0:02:27.6]} 16...
c5 {[%clk 0:02:36.2]} 17. e5 {[%clk 0:02:20.1]} 17... Bxe5 {[%clk 0:02:03.1]}
18. Bxa8 {[%clk 0:02:19.5]} 18... Qxa8 {[%clk 0:02:03.7]} 19. f3 {[%clk
0:02:16.5]} 19... Re8 {[%clk 0:01:53.9]} 20. Kg2 {[%clk 0:02:09.9]} 20... Qc6
{[%clk 0:01:45.5]} 21. Bh6 {[%clk 0:02:01.8]} 21... Bc8 {[%clk 0:01:22.6]} 22.
Rce1 {[%clk 0:01:55.3]} 22... Be6 {[%clk 0:01:18.8]} 23. Qc2 {[%clk 0:01:47.3]}
23... Bg7 {[%clk 0:01:04.3]} 24. Bxg7 {[%clk 0:01:46.8]} 24... Kxg7 {[%clk
0:01:05.2]} 25. Re2 {[%clk 0:01:39.3]} 25... Qb6 {[%clk 0:00:42.8]} 26. Rb1
{[%clk 0:01:33.7]} 26... Qa5 {[%clk 0:00:40]} 27. h4 {[%clk 0:01:08]} 27... Qa6
{[%clk 0:00:22.7]} 28. Qc3+ {[%clk 0:01:01.5]} 28... Kg8 {[%clk 0:00:22]} 29. h5
{[%clk 0:00:46]} 29... gxh5 {[%clk 0:00:21.9]} 30. Rh1 {[%clk 0:00:36.8]} 30...
Bh3+ {[%clk 0:00:19.5]} 31. Kf2 {[%clk 0:00:35.7]} 31... Rxe2+ {[%clk
0:00:19.4]} 32. Kxe2 {[%clk 0:00:36.6]} 32... Qxa2+ {[%clk 0:00:19.6]} 33. Ke3
{[%clk 0:00:33.8]} 33... Bf5 {[%clk 0:00:14.2]} 34. Ra1 {[%clk 0:00:21.5]} 34...
Qg2 {[%clk 0:00:08]} 35. Rxa7 {[%clk 0:00:20.1]} 35... Bc8 {[%clk 0:00:04.8]}
36. Ra8 {[%clk 0:00:18.2]} 36... Qh3 {[%clk 0:00:05]} 37. Qf6 {[%clk 0:00:17.8]}
37... Qd7 {[%clk 0:00:04.8]} 38. Qg5+ {[%clk 0:00:16.8]} 38... Kf8 {[%clk
0:00:04.6]} 39. Qd5 {[%clk 0:00:15]} 39... Ke7 {[%clk 0:00:04]} 40. Qe4+ {[%clk
0:00:15.2]} 40... Kf8 {[%clk 0:00:02.9]} 41. Qb7 {[%clk 0:00:12.9]} 41... Qe6+
{[%clk 0:00:02]} 42. Kf2 {[%clk 0:00:09.7]} 1-0

[Event "*** Titled Tuesday Blitz"]
[Site "Chess.com"]
[Date "2020.04.14"]
[Round "6"]
[White "manitodeplomo"]
[Black "Nesty_Javi_Chess"]
[Result "0-1"]
[WhiteElo "2488"]
[BlackElo "2784"]
[TimeControl "180+1"]
[EndTime "11:04:02 PDT"]
[Termination "Nesty_Javi_Chess won by resignation"]

1. d4 {[%clk 0:03:00.9]} 1... Nf6 {[%clk 0:02:59.5]} 2. c4 {[%clk 0:03:00.5]}
2... g6 {[%clk 0:03:00]} 3. Nc3 {[%clk 0:03:00.2]} 3... Bg7 {[%clk 0:03:00.9]}
4. e4 {[%clk 0:03:00.3]} 4... d6 {[%clk 0:03:01.8]} 5. Be2 {[%clk 0:03:00.7]}
5... O-O {[%clk 0:03:02.7]} 6. Nf3 {[%clk 0:02:59.7]} 6... e5 {[%clk 0:03:03.1]}
7. d5 {[%clk 0:02:59.7]} 7... Nbd7 {[%clk 0:03:03.7]} 8. Bg5 {[%clk 0:02:58.2]}
8... h6 {[%clk 0:03:04.1]} 9. Bh4 {[%clk 0:02:58]} 9... g5 {[%clk 0:03:03.7]}
10. Bg3 {[%clk 0:02:57]} 10... Nc5 {[%clk 0:03:03]} 11. Nd2 {[%clk 0:02:56.7]}
11... a5 {[%clk 0:03:03.2]} 12. O-O {[%clk 0:02:55.5]} 12... Ne8 {[%clk
0:02:59.9]} 13. b3 {[%clk 0:02:54.4]} 13... f5 {[%clk 0:03:00.2]} 14. f3 {[%clk
0:02:53.6]} 14... f4 {[%clk 0:03:00.8]} 15. Bf2 {[%clk 0:02:54.1]} 15... Rf7
{[%clk 0:02:59.8]} 16. a3 {[%clk 0:02:54.4]} 16... Nd7 {[%clk 0:02:56.2]} 17. b4
{[%clk 0:02:54.3]} 17... Bf8 {[%clk 0:02:56.8]} 18. c5 {[%clk 0:02:30.1]} 18...
Ndf6 {[%clk 0:02:55.6]} 19. Nc4 {[%clk 0:02:22.4]} 19... h5 {[%clk 0:02:56.1]}
20. b5 {[%clk 0:01:35.6]} 20... Rg7 {[%clk 0:02:52.8]} 21. b6 {[%clk 0:01:33.3]}
21... g4 {[%clk 0:02:29.4]} 22. bxc7 {[%clk 0:01:09.7]} 22... Nxc7 {[%clk
0:02:21.5]} 23. Bh4 {[%clk 0:01:01.3]} 23... gxf3 {[%clk 0:02:08]} 24. Bxf3
{[%clk 0:00:59.4]} 24... Bg4 {[%clk 0:02:08.7]} 25. Kh1 {[%clk 0:00:56.9]} 25...
Nce8 {[%clk 0:02:04.2]} 26. Rb1 {[%clk 0:00:52.9]} 26... Rc8 {[%clk 0:02:00.6]}
27. Na4 {[%clk 0:00:39]} 27... Bxf3 {[%clk 0:01:45.1]} 28. gxf3 {[%clk
0:00:19.4]} 28... Rcc7 {[%clk 0:01:37.4]} 29. Qe2 {[%clk 0:00:16.5]} 29... Qc8
{[%clk 0:01:37]} 30. Nab6 {[%clk 0:00:13.6]} 30... Qh3 {[%clk 0:01:36.6]} 31.
Bxf6 {[%clk 0:00:13.7]} 31... Nxf6 {[%clk 0:01:37]} 32. Nxd6 {[%clk 0:00:12.2]}
32... Rxc5 {[%clk 0:01:17.1]} 33. Nf5 {[%clk 0:00:11.3]} 33... Rgc7 {[%clk
0:01:08.4]} 34. Rg1+ {[%clk 0:00:11.5]} 34... Kf7 {[%clk 0:01:02.2]} 35. Qg2
{[%clk 0:00:11.1]} 35... Qxg2+ {[%clk 0:01:02.2]} 36. Rxg2 {[%clk 0:00:12]}
36... Rc1+ {[%clk 0:01:02.1]} 37. Rxc1 {[%clk 0:00:12]} 37... Rxc1+ {[%clk
0:01:03]} 38. Rg1 {[%clk 0:00:11.2]} 38... Rc3 {[%clk 0:01:03.9]} 39. Rg5 {[%clk
0:00:09.2]} 39... Rxf3 {[%clk 0:01:00.3]} 40. Nh4 {[%clk 0:00:07.1]} 40... Rxa3
{[%clk 0:00:57.9]} 41. d6 {[%clk 0:00:05.1]} 41... Bxd6 {[%clk 0:00:55.3]} 42.
Nc4 {[%clk 0:00:05.1]} 42... Ra1+ {[%clk 0:00:55.4]} 43. Kg2 {[%clk 0:00:05.7]}
43... Ra2+ {[%clk 0:00:55.5]} 44. Kf3 {[%clk 0:00:05.5]} 44... Ke6 {[%clk
0:00:40.3]} 45. Nxd6 {[%clk 0:00:05.4]} 45... Kxd6 {[%clk 0:00:41.2]} 46. Ng6
{[%clk 0:00:04.4]} 46... Ra3+ {[%clk 0:00:40.3]} 47. Kg2 {[%clk 0:00:04.7]}
47... f3+ {[%clk 0:00:40.1]} 48. Kf1 {[%clk 0:00:04.5]} 48... Ra1+ {[%clk
0:00:39.6]} 49. Kf2 {[%clk 0:00:04.4]} 49... Nxe4+ {[%clk 0:00:40.5]} 0-1

[Event "*** Titled Tuesday Blitz"]
[Site "Chess.com"]
[Date "2020.04.14"]
[Round "6"]
[White "SanQui14"]
[Black "PotapovaM"]
[Result "1/2-1/2"]
[WhiteElo "2336"]
[BlackElo "2516"]
[TimeControl "180+1"]
[EndTime "11:04:02 PDT"]
[Termination "Game drawn by repetition"]

1. d4 {[%clk 0:03:00.9]} 1... Nf6 {[%clk 0:02:59.7]} 2. Nf3 {[%clk 0:03:01.5]}
2... e6 {[%clk 0:02:59.7]} 3. Bf4 {[%clk 0:03:02]} 3... c5 {[%clk 0:02:58.7]} 4.
e3 {[%clk 0:03:02.4]} 4... Nc6 {[%clk 0:02:56.3]} 5. c3 {[%clk 0:03:02.3]} 5...
d5 {[%clk 0:02:55.8]} 6. Nbd2 {[%clk 0:03:02.6]} 6... Bd6 {[%clk 0:02:52.2]} 7.
Bxd6 {[%clk 0:02:56.9]} 7... Qxd6 {[%clk 0:02:53.1]} 8. Be2 {[%clk 0:02:56.9]}
8... O-O {[%clk 0:02:52.1]} 9. O-O {[%clk 0:02:57.1]} 9... e5 {[%clk 0:02:52.2]}
10. dxe5 {[%clk 0:02:56.6]} 10... Nxe5 {[%clk 0:02:53.1]} 11. Nxe5 {[%clk
0:02:56.8]} 11... Qxe5 {[%clk 0:02:53.3]} 12. Nf3 {[%clk 0:02:57.7]} 12... Qe7
{[%clk 0:02:52.1]} 13. c4 {[%clk 0:02:57.1]} 13... dxc4 {[%clk 0:02:48.3]} 14.
Bxc4 {[%clk 0:02:57.6]} 14... Bg4 {[%clk 0:02:48.7]} 15. h3 {[%clk 0:02:57.3]}
15... Bh5 {[%clk 0:02:48.3]} 16. Be2 {[%clk 0:02:57.1]} 16... Rfd8 {[%clk
0:02:47.4]} 17. Qc2 {[%clk 0:02:57.3]} 17... Bg6 {[%clk 0:02:47.6]} 18. Qc4
{[%clk 0:02:51.6]} 18... a6 {[%clk 0:02:40]} 19. Rac1 {[%clk 0:02:47.8]} 19...
Rac8 {[%clk 0:02:39.3]} 20. Rfd1 {[%clk 0:02:43.7]} 20... b5 {[%clk 0:02:34.8]}
21. Qf4 {[%clk 0:02:30.7]} 21... c4 {[%clk 0:02:30.4]} 22. Nd4 {[%clk
0:02:23.4]} 22... Qe4 {[%clk 0:02:25.2]} 23. Qxe4 {[%clk 0:02:03.6]} 23... Nxe4
{[%clk 0:02:26.1]} 24. Bg4 {[%clk 0:02:00.4]} 24... Ra8 {[%clk 0:02:17.7]} 25.
Nc6 {[%clk 0:01:59.3]} 25... Rxd1+ {[%clk 0:02:09.8]} 26. Rxd1 {[%clk
0:02:00.2]} 26... Kf8 {[%clk 0:01:35.9]} 27. Bf3 {[%clk 0:01:57]} 27... Rc8
{[%clk 0:01:29.4]} 28. Ne5 {[%clk 0:01:52.9]} 28... Nc5 {[%clk 0:01:21.2]} 29.
Rd5 {[%clk 0:01:45]} 29... Na4 {[%clk 0:01:16.9]} 30. Rd2 {[%clk 0:01:41.1]}
30... Bb1 {[%clk 0:01:08]} 31. a3 {[%clk 0:01:34.2]} 31... f6 {[%clk 0:01:01.9]}
32. Bb7 {[%clk 0:01:13]} 32... Rc7 {[%clk 0:00:40.6]} 33. Nd7+ {[%clk
0:01:12.5]} 33... Ke8 {[%clk 0:00:32.5]} 34. Bxa6 {[%clk 0:01:12.6]} 34... c3
{[%clk 0:00:11.8]} 35. bxc3 {[%clk 0:01:13.5]} 35... Nxc3 {[%clk 0:00:11.7]} 36.
Nb6 {[%clk 0:01:11.8]} 36... Rc6 {[%clk 0:00:09.2]} 37. Nd5 {[%clk 0:01:10]}
37... Nxd5 {[%clk 0:00:04.6]} 38. Bxb5 {[%clk 0:01:09.9]} 38... Ne7 {[%clk
0:00:04.2]} 39. a4 {[%clk 0:01:03.1]} 39... Bf5 {[%clk 0:00:03.6]} 40. a5 {[%clk
0:00:49.7]} 40... Bd7 {[%clk 0:00:03.9]} 41. Bxc6 {[%clk 0:00:49.6]} 41... Nxc6
{[%clk 0:00:04.8]} 42. a6 {[%clk 0:00:49.5]} 42... Bc8 {[%clk 0:00:03.9]} 43.
Rb2 {[%clk 0:00:33.8]} 43... Kd7 {[%clk 0:00:02.6]} 44. Ra2 {[%clk 0:00:29.3]}
44... Na7 {[%clk 0:00:02.7]} 45. Rd2+ {[%clk 0:00:29]} 45... Kc7 {[%clk
0:00:02.4]} 46. Rc2+ {[%clk 0:00:28.3]} 46... Kd7 {[%clk 0:00:02.3]} 47. Rd2+
{[%clk 0:00:28.5]} 47... Kc7 {[%clk 0:00:02.8]} 48. Ra2 {[%clk 0:00:27]} 48...
Kb6 {[%clk 0:00:02.8]} 49. Rd2 {[%clk 0:00:25.8]} 49... Kc7 {[%clk 0:00:03]}
1/2-1/2

[Event "*** Titled Tuesday Blitz"]
[Site "Chess.com"]
[Date "2020.04.14"]
[Round "6"]
[White "KacperPolOK"]
[Black "zurzan"]
[Result "1-0"]
[WhiteElo "2247"]
[BlackElo "1948"]
[TimeControl "180+1"]
[EndTime "11:04:03 PDT"]
[Termination "KacperPolOK won by checkmate"]

1. e4 {[%clk 0:03:00.9]} 1... Nf6 {[%clk 0:02:59.5]} 2. e5 {[%clk 0:02:59]} 2...
Nd5 {[%clk 0:02:59.5]} 3. d4 {[%clk 0:02:58.3]} 3... d6 {[%clk 0:02:59.4]} 4.
Bc4 {[%clk 0:02:55.7]} 4... Nb6 {[%clk 0:02:58.8]} 5. Bb3 {[%clk 0:02:54.7]}
5... g6 {[%clk 0:02:58.2]} 6. e6 {[%clk 0:02:49.1]} 6... fxe6 {[%clk 0:02:53]}
7. h4 {[%clk 0:02:48.7]} 7... d5 {[%clk 0:02:24.5]} 8. h5 {[%clk 0:02:44.3]}
8... Bg7 {[%clk 0:02:17.4]} 9. Qd3 {[%clk 0:02:26.9]} 9... Kd7 {[%clk
0:02:00.2]} 10. Nf3 {[%clk 0:02:22.9]} 10... Nc6 {[%clk 0:01:58.3]} 11. Bf4
{[%clk 0:02:14.3]} 11... Qf8 {[%clk 0:01:42.6]} 12. Bg3 {[%clk 0:02:02.4]} 12...
Kd8 {[%clk 0:01:12.3]} 13. Nbd2 {[%clk 0:01:55.2]} 13... Bd7 {[%clk 0:01:11.8]}
14. O-O-O {[%clk 0:01:49.6]} 14... a5 {[%clk 0:01:11.4]} 15. a3 {[%clk
0:01:44.1]} 15... a4 {[%clk 0:01:10.7]} 16. Ba2 {[%clk 0:01:44]} 16... Ra5
{[%clk 0:01:02.8]} 17. hxg6 {[%clk 0:01:39.1]} 17... hxg6 {[%clk 0:01:02.2]} 18.
Qxg6 {[%clk 0:01:36]} 18... Rg8 {[%clk 0:00:58.3]} 19. Qd3 {[%clk 0:01:32.7]}
19... Kc8 {[%clk 0:00:50.7]} 20. Kb1 {[%clk 0:01:22.2]} 20... Qf5 {[%clk
0:00:35.7]} 21. Qxf5 {[%clk 0:01:02.9]} 21... exf5 {[%clk 0:00:35.6]} 22. c4
{[%clk 0:00:59.3]} 22... Nxd4 {[%clk 0:00:34.5]} 23. Nxd4 {[%clk 0:00:52.2]}
23... Bxd4 {[%clk 0:00:33.7]} 24. cxd5 {[%clk 0:00:49.4]} 24... Rb5 {[%clk
0:00:28.5]} 25. Nc4 {[%clk 0:00:42.8]} 25... Nxc4 {[%clk 0:00:28.4]} 26. Rxd4
{[%clk 0:00:41.8]} 26... Nxa3+ {[%clk 0:00:29.3]} 27. Kc1 {[%clk 0:00:41.8]}
27... f4 {[%clk 0:00:24.7]} 28. Bxf4 {[%clk 0:00:32.8]} 28... Rc5+ {[%clk
0:00:25]} 29. Kd1 {[%clk 0:00:32.7]} 29... Nb5 {[%clk 0:00:25.1]} 30. Re4 {[%clk
0:00:29.4]} 30... Bf5 {[%clk 0:00:23.9]} 31. Rxe7 {[%clk 0:00:28.2]} 31... Bc2+
{[%clk 0:00:22.8]} 32. Kd2 {[%clk 0:00:27]} 32... Nd4 {[%clk 0:00:15]} 33. d6
{[%clk 0:00:25.3]} 33... cxd6 {[%clk 0:00:14.4]} 34. Bxg8 {[%clk 0:00:24.3]}
34... Nb3+ {[%clk 0:00:11.6]} 35. Ke3 {[%clk 0:00:23.1]} 35... Rb5 {[%clk
0:00:07.7]} 36. Rh8 {[%clk 0:00:20.3]} 36... Kb8 {[%clk 0:00:06.4]} 37. Bc4+
{[%clk 0:00:20]} 37... Ka7 {[%clk 0:00:07.2]} 38. Bxb5 {[%clk 0:00:20.1]} 38...
d5 {[%clk 0:00:06.3]} 39. Bc6 {[%clk 0:00:16.5]} 39... d4+ {[%clk 0:00:07.2]}
40. Kf3 {[%clk 0:00:15.5]} 40... Kb6 {[%clk 0:00:08.1]} 41. Bxb7 {[%clk
0:00:15]} 41... d3 {[%clk 0:00:07.4]} 42. Rh6+ {[%clk 0:00:14.6]} 42... Kc5
{[%clk 0:00:06.5]} 43. Re5+ {[%clk 0:00:14.7]} 43... Kb4 {[%clk 0:00:06.5]} 44.
Rb6+ {[%clk 0:00:13.9]} 44... Kc4 {[%clk 0:00:05.4]} 45. Ba6+ {[%clk 0:00:14.2]}
45... Kd4 {[%clk 0:00:05.2]} 46. Rb4# {[%clk 0:00:14.6]} 1-0

[Event "*** Titled Tuesday Blitz"]
[Site "Chess.com"]
[Date "2020.04.14"]
[Round "6"]
[White "Keaton87"]
[Black "ChesterF"]
[Result "1-0"]
[WhiteElo "2669"]
[BlackElo "2502"]
[TimeControl "180+1"]
[EndTime "11:04:04 PDT"]
[Termination "Keaton87 won by resignation"]

1. d4 {[%clk 0:03:00.9]} 1... Nf6 {[%clk 0:02:59.6]} 2. Bg5 {[%clk 0:03:01]}
2... d5 {[%clk 0:02:56.9]} 3. Nd2 {[%clk 0:03:00.8]} 3... e6 {[%clk 0:02:54]} 4.
e3 {[%clk 0:03:00.5]} 4... Be7 {[%clk 0:02:54.2]} 5. Bd3 {[%clk 0:03:00.6]} 5...
b6 {[%clk 0:02:51.8]} 6. c3 {[%clk 0:02:59.4]} 6... Bb7 {[%clk 0:02:51.6]} 7. f4
{[%clk 0:02:59.2]} 7... Nbd7 {[%clk 0:02:51.4]} 8. Ngf3 {[%clk 0:02:59.1]} 8...
O-O {[%clk 0:02:47.3]} 9. Ne5 {[%clk 0:02:59]} 9... Nxe5 {[%clk 0:02:41.3]} 10.
fxe5 {[%clk 0:02:58.6]} 10... Nd7 {[%clk 0:02:31.7]} 11. Bxe7 {[%clk 0:02:50.3]}
11... Qxe7 {[%clk 0:02:29.3]} 12. O-O {[%clk 0:02:50.8]} 12... Qg5 {[%clk
0:02:19.8]} 13. Rf4 {[%clk 0:02:44.7]} 13... f6 {[%clk 0:02:14.2]} 14. exf6
{[%clk 0:02:33.1]} 14... Rxf6 {[%clk 0:02:05.9]} 15. Nf3 {[%clk 0:02:26.7]}
15... Qh6 {[%clk 0:02:03.6]} 16. Qd2 {[%clk 0:02:21.1]} 16... Rxf4 {[%clk
0:01:28.6]} 17. exf4 {[%clk 0:02:20.9]} 17... Rf8 {[%clk 0:01:28.8]} 18. g3
{[%clk 0:02:19.1]} 18... Nf6 {[%clk 0:01:21.2]} 19. Re1 {[%clk 0:02:17.5]} 19...
Ne4 {[%clk 0:01:13.4]} 20. Qe3 {[%clk 0:02:14.2]} 20... Qh5 {[%clk 0:00:53.5]}
21. Nd2 {[%clk 0:02:12.6]} 21... Nxd2 {[%clk 0:00:34.2]} 22. Qxd2 {[%clk
0:02:13.5]} 22... Bc8 {[%clk 0:00:33.9]} 23. Re5 {[%clk 0:02:11.1]} 23... Qh6
{[%clk 0:00:29.3]} 24. Qe3 {[%clk 0:02:09.6]} 24... Qf6 {[%clk 0:00:25.4]} 25.
h4 {[%clk 0:02:07.2]} 25... Bd7 {[%clk 0:00:23.4]} 26. Kh2 {[%clk 0:02:06.8]}
26... Qf7 {[%clk 0:00:17.6]} 27. Qe2 {[%clk 0:02:06.4]} 27... Re8 {[%clk
0:00:16.9]} 28. Qg4 {[%clk 0:02:06.2]} 28... Rf8 {[%clk 0:00:15.8]} 29. h5
{[%clk 0:02:05.1]} 29... c5 {[%clk 0:00:13.1]} 30. h6 {[%clk 0:02:02.4]} 30...
g6 {[%clk 0:00:12.9]} 31. Qe2 {[%clk 0:01:45.7]} 31... cxd4 {[%clk 0:00:12.1]}
32. cxd4 {[%clk 0:01:46.6]} 32... Rc8 {[%clk 0:00:11.8]} 33. Qg4 {[%clk
0:01:24.1]} 33... Qf8 {[%clk 0:00:10.3]} 34. Qg5 {[%clk 0:01:24]} 34... Qf7
{[%clk 0:00:09.7]} 35. Re1 {[%clk 0:01:22.2]} 35... b5 {[%clk 0:00:08.2]} 36.
Qe5 {[%clk 0:01:18.5]} 36... b4 {[%clk 0:00:08.1]} 37. g4 {[%clk 0:01:14.8]}
37... Qf8 {[%clk 0:00:08.2]} 38. g5 {[%clk 0:01:14.7]} 38... Qf7 {[%clk
0:00:08.4]} 39. Kg3 {[%clk 0:01:15]} 39... a5 {[%clk 0:00:07.3]} 40. Qd6 {[%clk
0:01:11.6]} 40... a4 {[%clk 0:00:07.1]} 41. Be2 {[%clk 0:00:54.6]} 41... Qf8
{[%clk 0:00:06.7]} 42. Qe5 {[%clk 0:00:53.9]} 42... Qf7 {[%clk 0:00:06.2]} 43.
Bg4 {[%clk 0:00:53.9]} 43... Rc6 {[%clk 0:00:04.8]} 44. Qb8+ {[%clk 0:00:53.3]}
44... Rc8 {[%clk 0:00:04.9]} 45. Qxb4 {[%clk 0:00:53.2]} 45... Qf8 {[%clk
0:00:04]} 46. Qxf8+ {[%clk 0:00:52.3]} 46... Kxf8 {[%clk 0:00:04.9]} 47. Re2
{[%clk 0:00:47.2]} 47... Rc4 {[%clk 0:00:03.8]} 48. Rd2 {[%clk 0:00:47.1]} 48...
Ke7 {[%clk 0:00:03.7]} 49. a3 {[%clk 0:00:47.4]} 49... Kd6 {[%clk 0:00:04.6]}
50. Be2 {[%clk 0:00:47.1]} 50... Rc7 {[%clk 0:00:03.5]} 51. Bd3 {[%clk
0:00:46.8]} 51... Rb7 {[%clk 0:00:04.4]} 52. Kf2 {[%clk 0:00:43.6]} 52... Rb3
{[%clk 0:00:04.3]} 53. Be2 {[%clk 0:00:37.9]} 53... Rb8 {[%clk 0:00:03.9]} 54.
Bf3 {[%clk 0:00:38.1]} 54... Rf8 {[%clk 0:00:03.8]} 55. Ke3 {[%clk 0:00:37.9]}
55... Rb8 {[%clk 0:00:04]} 56. Bd1 {[%clk 0:00:37.3]} 56... Rb3+ {[%clk
0:00:04.5]} 57. Bxb3 {[%clk 0:00:36.9]} 1-0

[Event "*** Titled Tuesday Blitz"]
[Site "Chess.com"]
[Date "2020.04.14"]
[Round "6"]
[White "Orest_Vovk"]
[Black "GianmarcoVaR"]
[Result "1-0"]
[WhiteElo "2502"]
[BlackElo "2617"]
[TimeControl "180+1"]
[EndTime "11:04:04 PDT"]
[Termination "Orest_Vovk won on time"]

1. g4 {[%clk 0:03:00.9]} 1... d6 {[%clk 0:02:55.6]} 2. Bg2 {[%clk 0:03:00.6]}
2... Nc6 {[%clk 0:02:54.3]} 3. h3 {[%clk 0:02:59.3]} 3... e5 {[%clk 0:02:51.9]}
4. c4 {[%clk 0:02:59.4]} 4... f5 {[%clk 0:02:46.8]} 5. gxf5 {[%clk 0:02:56.4]}
5... Bxf5 {[%clk 0:02:46.4]} 6. d3 {[%clk 0:02:56.6]} 6... Be7 {[%clk
0:02:44.5]} 7. Nc3 {[%clk 0:02:55]} 7... Nf6 {[%clk 0:02:42.2]} 8. Nf3 {[%clk
0:02:51.4]} 8... Qd7 {[%clk 0:02:38]} 9. d4 {[%clk 0:02:44.2]} 9... Ne4 {[%clk
0:02:23]} 10. Nxe4 {[%clk 0:02:27.2]} 10... Bxe4 {[%clk 0:02:22]} 11. dxe5
{[%clk 0:02:16.5]} 11... O-O-O {[%clk 0:01:59.1]} 12. Be3 {[%clk 0:01:48.7]}
12... Bxf3 {[%clk 0:01:46]} 13. Bxf3 {[%clk 0:01:32.7]} 13... Nxe5 {[%clk
0:01:45.8]} 14. Qd5 {[%clk 0:01:29.7]} 14... Nxf3+ {[%clk 0:01:29.1]} 15. Qxf3
{[%clk 0:01:29.1]} 15... Bf6 {[%clk 0:01:16.6]} 16. O-O-O {[%clk 0:01:08.4]}
16... Qa4 {[%clk 0:01:05.8]} 17. Qg4+ {[%clk 0:01:03.5]} 17... Kb8 {[%clk
0:01:05.9]} 18. Kb1 {[%clk 0:01:01.7]} 18... Rhe8 {[%clk 0:01:01.7]} 19. Bd4
{[%clk 0:00:35.3]} 19... Bxd4 {[%clk 0:00:19.9]} 20. Rxd4 {[%clk 0:00:32.7]}
20... Qd7 {[%clk 0:00:19.9]} 21. Qxd7 {[%clk 0:00:31.1]} 21... Rxd7 {[%clk
0:00:20.3]} 22. e3 {[%clk 0:00:30.6]} 22... Rf7 {[%clk 0:00:20.8]} 23. Rh2
{[%clk 0:00:28.3]} 23... Ref8 {[%clk 0:00:17]} 24. Rg4 {[%clk 0:00:26.7]} 24...
g6 {[%clk 0:00:15.1]} 25. Rgg2 {[%clk 0:00:26.8]} 25... Rf5 {[%clk 0:00:13.3]}
26. h4 {[%clk 0:00:24.2]} 26... Rh5 {[%clk 0:00:13.7]} 27. Rg5 {[%clk 0:00:21]}
27... Rf5 {[%clk 0:00:11.4]} 28. Rxh5 {[%clk 0:00:20.8]} 28... Rxh5 {[%clk
0:00:11.1]} 29. f4 {[%clk 0:00:21.3]} 29... Kc8 {[%clk 0:00:11.5]} 30. Kc2
{[%clk 0:00:21.5]} 30... Kd7 {[%clk 0:00:11.7]} 31. Kd3 {[%clk 0:00:22]} 31...
d5 {[%clk 0:00:11.2]} 32. cxd5 {[%clk 0:00:20.8]} 32... Rxd5+ {[%clk 0:00:11.8]}
33. Ke4 {[%clk 0:00:21.4]} 33... Ke6 {[%clk 0:00:12.2]} 34. Kf3 {[%clk
0:00:16.2]} 34... c6 {[%clk 0:00:11.2]} 35. e4 {[%clk 0:00:14]} 35... Rd3+
{[%clk 0:00:10.5]} 36. Kg4 {[%clk 0:00:13.9]} 36... h5+ {[%clk 0:00:06.7]} 37.
Kg5 {[%clk 0:00:14.2]} 37... Rg3+ {[%clk 0:00:07.1]} 38. Kh6 {[%clk 0:00:14.5]}
38... Rg4 {[%clk 0:00:07.6]} 39. Rf2 {[%clk 0:00:12.6]} 39... Kf6 {[%clk
0:00:04.6]} 40. f5 {[%clk 0:00:11.5]} 40... Ke5 {[%clk 0:00:01.5]} 41. f6 {[%clk
0:00:11.2]} 1-0